[Event "99th Argentina-ch 2024"]
[Site "Buenos Aires"]
[Date "2024.11.28"]
[Round "3.6"]
[White "Acosta, Pablo Ismael"]
[Black "Tokman, Ariel"]
[Result "1-0"]
[ECO "D12"]
[WhiteElo "2454"]
[BlackElo "2390"]
[Annotator "TA"]
[PlyCount "101"]
[EventDate "2024.11.15"]
[EventType "tourn"]
[EventCountry "ARG"]
[SourceTitle "playchess.com"]
[Source "ChessBase"]
[SourceQuality "1"]
[TimeControl "40/5400+30:1800+30"]

{[%evp 12,101,7,15,28,13,21,15,21,16,34,28,40,19,26,0,56,54,56,50,45,4,4,4,14,22,23,1,43,12,103,87,85,96,80,68,127,153,157,119,136,126,204,205,196,109,91,67,174,167,225,206,247,172,177,153,195,0,143,129,152,146,151,137,120,152,160,186,187,187,473,195,195,195,195,166,195,184,195,184,177,169,162,177,714,622,1899,1825,1844,961,6049,5742]} 1. Nf3 {[%emt 0:03:28]} d5 {[%emt 0:00:06]} 2. d4 {[%emt 0:00:08]} Nf6 {[%emt 0:00:05]} 3. c4 {[%emt 0:00:38]} c6 {[%emt 0:00:06]} 4. e3 {[%emt 0:02:55]} Bf5 {[%emt 0:02:08]} 5. Nc3 {[%emt 0:00:44]} e6 {[%emt 0:00:10]} 6. Be2 {[%emt 0:01:10]} Nbd7 {[%emt 0:00:22]} 7. Nh4 {[%emt 0:00:39]} Bg6 {[%emt 0:01:35]} 8. Qb3 {[%emt 0:02:32]} Qb6 {[%emt 0:01:39]} 9. Nxg6 {[%emt 0:00:15]} hxg6 {[%emt 0:00:12]} 10. Bd2 {[%emt 0:00:07]} Qxb3 {[%emt 0:19:12]} 11. axb3 {[%emt 0:02:40]} a6 {[%emt 0:00:02]} 12. f4 {[%emt 0:04:46]} Be7 {[%emt 0:04:44]} 13. Bf3 {[%emt 0:02:25]} Nb6 {[%emt 0:03:54]} (13... O-O-O $11) 14. c5 $14 {[%emt 0:09:35]} Nbd7 {[%emt 0:00:03]} 15. g4 {[%emt 0:00:39]} Ng8 {[%emt 0:07:25]} 16. Ke2 {[%emt 0:02:40][%cal Oh2h4]} g5 {[%emt 0:00:46]} 17. b4 {[%emt 0:04:29][%cal Ob4b5]} O-O-O {[%emt 0:02:42]} 18. e4 {[%emt 0:01:47]} gxf4 {[%emt 0:12:50]} 19. exd5 {[%emt 0:10:52]} exd5 {[%emt 0:01:03]} 20. b5 $1 {[%emt 0:02:52]} (20. Bxf4 Nf8 $11) 20... g5 {[%emt 0:15:32]} (20... Bf6 $11 {keeps the balance.}) 21. bxc6 {[%emt 0:01:33]} bxc6 {[%emt 0:00:02]} 22. Rxa6 {[%emt 0:00:20]} Nb8 {[%emt 0:00:05]} 23. Ra4 {[%emt 0:02:39][%cal Oh2h4]} Nf6 {[%emt 0:00:31] [#]} (23... Rh4 $14) 24. h4 $1 $16 {[%emt 0:01:19][%mdl 512]} Ne8 {[%emt 0:00:50]} 25. Kd3 $36 {[%emt 0:04:28][%mdl 2048] White is really pushing. White is more active.} Nc7 {[%emt 0:00:46]} 26. h5 $1 {[%emt 0:00:36]} Ne6 {[%emt 0:01:28]} (26... Bf6 $16 {was necessary.} 27. b4 Rde8) 27. b4 $1 $18 {[%emt 0:02:33]} Bf6 {[%emt 0:08:47]} 28. Ne2 {[%emt 0:04:57]} (28. b5 $18) 28... Rd7 {[%emt 0:00:28]} 29. Rb1 {[%emt 0:03:16]} Rhd8 {[%emt 0:02:48]} (29... Rb7 $14) 30. b5 {[%emt 0:02:15]} cxb5 {[%emt 0:00:56]} (30... Rb7 $142) 31. Rxb5 {[%emt 0:00:19]} Rb7 {[%emt 0:00:24]} 32. Rxb7 {[%emt 0:04:38]} Kxb7 {[%emt 0:00:02]} 33. Rb4+ {[%emt 0:02:05]} Kc8 {[%emt 0:00:20]} 34. Ra4 $2 {[%emt 0:04:30]} ({White should play} 34. Bc3 $1 $18) 34... Rd7 {[%emt 0:04:07]} (34... Kb7 $1 $11) 35. Nc3 {[%emt 0:01:22]} Bxd4 {[%emt 0:03:50]} 36. Rxd4 {[%emt 0:01:28]} Nxd4 {[%emt 0:00:58]} 37. Kxd4 {[%emt 0:00:03]} Nc6+ {[%emt 0:00:04]} 38. Kd3 {[%emt 0:00:23]} Ne5+ {[%emt 0:04:14]} 39. Ke2 {[%emt 0:01:00]} Nxf3 {[%emt 0:01:55]} 40. Kxf3 {[%emt 0:00:00]} Kc7 $2 {[%emt 0:00:00]} (40... Kb7 41. Ne2 (41. h6 f6 $11) 41... d4) 41. Be1 {[%emt 0:18:59]} (41. h6 f6 $16) (41. Ne2 $142) 41... Kc6 {[%emt 0:05:13]} 42. Bf2 {[%emt 0:00:08]} d4 {[%emt 0:00:25]} 43. Ne4 {[%emt 0:00:24]} d3 {[%emt 0:00:20] And now ...d2 would win.} 44. Be1 $1 {[%emt 0:00:29]} (44. Nxg5 $2 d2 45. Kxf4 d1=Q $19 (45... d1=R 46. Nf3 $17)) 44... f6 {[%emt 0:11:22]} 45. Bd2 {[%emt 0:04:14]} (45. Nxf6 d2 46. Bxd2 Rxd2 $11) 45... Rf7 {[%emt 0:01:20]} 46. Bc3 {[%emt 0:02:40]} Re7 {[%emt 0:05:54]} 47. h6 $1 {[%emt 0:04:11]} (47. Nxf6 Re3+ 48. Kg2 Re6 $11 (48... Kxc5 $2 49. h6 $18)) (47. Bxf6 $2 Rxe4 48. Kxe4 d2 (48... Kxc5 49. Kxd3 Kd5 50. h6 f3 51. Bd4 Kd6 52. h7 Kd7 53. h8=Q) 49. Bxg5 d1=Q $19) 47... d2 $2 {[%emt 0:00:06]} (47... Rh7) 48. Nxd2 {[%emt 0:03:48]} (48. Bxf6 {gets mated.} d1=Q+ (48... d1=R $2 {is the wrong capture.} 49. Bxe7 Rd3+ 50. Kg2 $18) 49. Kg2 Rxe4 (49... Qxg4+ 50. Kf1 Rxe4 51. Bd4 Qh3+ 52. Kf2 Qg3+ 53. Kf1 Re1#)) (48. Bxd2 Rh7 $16) 48... Re3+ {[%emt 0:01:53]} 49. Kg2 $1 {[%emt 0:00:40] and h7 should not be overlooked} Rg3+ {[%emt 0:02:17] [#]} 50. Kh2 $1 {[%emt 0:00:30]} Rxg4 {[%emt 0:03:25] [#]} 51. Nf3 $1 {[%emt 0:00:08]} ({Stronger than} 51. Bxf6 Rh4+ 52. Kg2 Rxh6 53. Bxg5 Re6 $11) 1-0